bitfinex-derivatives/quotes_ETHF0:USTF0_20240817
["timestamp","ask_amount","ask_price","bid_price","bid_amount"]
[1723884750847,0.0083296,2601.7,2601.6,70.88891974]
[1723884751460,0.0083296,2601.7,2601.6,69.31823852]
[1723884751764,0.0083296,2601.7,2601.6,70.88895597]
[1723884752149,0.0083296,2601.7,2601.6,68.33783597]
[1723884752355,0.0083296,2601.7,2601.6,67.83432429]
[1723884752553,0.0083296,2601.7,2601.6,68.94432429]
[1723884753360,0.0083296,2601.7,2601.6,63.94345812]
[1723884754065,0.0083296,2601.7,2601.6,60.10023449]
[1723884754859,0.0083296,2601.7,2601.6,58.52951704]
[1723884755063,0.0083296,2601.7,2601.6,56.89268342]
[1723884755657,0.0083296,2601.7,2601.6,54.8829095]
[1723884756365,0.0083296,2601.7,2601.6,56.38951999]
[1723884756561,0.0083296,2601.7,2601.6,8.22843104]
[1723884756770,3.8523296,2601.7,2601.6,1.71499743]
[1723884756962,3.8523296,2601.7,2601.5,2.55113]
[1723884757263,1.1118,2601.6,2601.5,2.55113]
[1723884758362,0.3648,2601.6,2601.5,2.55113]
[1723884758660,0.0083296,2601.7,2601.6,1.44112]
[1723884758854,0.0083296,2601.7,2601.6,3.28902]
[1723884759061,0.0083296,2601.7,2601.6,3.89421718]
[1723884759666,0.0083296,2601.7,2601.6,7.91744387]
[1723884760060,0.0083296,2601.7,2601.6,11.15624669]
[1723884760257,0.0083296,2601.7,2601.6,11.76143874]
[1723884760462,0.0083296,2601.7,2601.6,7.91743874]
[1723884761066,0.0083296,2601.7,2601.6,13.20255874]
[1723884761264,0.0083296,2601.7,2601.6,14.20710921]
[1723884761466,0.0083296,2601.7,2601.6,16.63078414]
[1723884761765,0.0083296,2601.7,2601.6,14.68748341]
[1723884762375,0.0083296,2601.7,2601.6,14.68752127]
[1723884763174,0.0083296,2601.7,2601.6,16.1286321]
[1723884763473,0.0083296,2601.7,2601.6,16.12851872]
[1723884763873,0.0083296,2601.7,2601.6,15.5234319]
[1723884764073,0.0083296,2601.7,2601.6,16.12851382]
[1723884765575,0.0083296,2601.7,2601.6,15.64782493]
[1723884765878,0.0083296,2601.7,2601.6,17.56948048]
[1723884766068,0.0083296,2601.7,2601.6,16.56522416]
[1723884766763,0.0083296,2601.7,2601.6,16.5651801]
[1723884767475,0.0083296,2601.7,2601.6,15.96009818]
[1723884767677,0.0083296,2601.7,2601.6,16.56516561]
[1723884767968,0.00042714,2601.7,2601.6,19.03781174]
[1723884768175,0.00042714,2601.7,2601.6,17.53120125]
[1723884768472,3.5582,2602.2,2602.1,1.44084]
[1723884768672,3.9312,2602.6,2602.1,1.71485988]
[1723884768868,5.72958,2602.6,2602.5,1.11]
[1723884769476,9.57628542,2602.6,2602.5,0.00423211]
[1723884772269,9.57628542,2602.6,2602.5,1.11423211]
[1723884774774,8.13570542,2602.6,2602.5,1.11423211]
[1723884774971,9.57626542,2602.6,2602.5,1.11423211]
[1723884776281,9.57626542,2602.6,2602.5,0.00423211]
[1723884776480,11.01682542,2602.6,2602.5,0.00423211]
[1723884776675,9.57626542,2602.6,2602.5,0.00423211]
[1723884778479,17.12682542,2602.6,2602.5,0.00423211]
[1723884778782,20.58284941,2602.6,2602.5,0.00423211]
[1723884779175,19.14228941,2602.6,2602.5,0.00423211]
[1723884781182,14.14228941,2602.6,2602.5,0.00423211]
[1723884781382,11.59172941,2602.6,2602.5,0.00423211]
[1723884781781,11.59172941,2602.6,2602.5,1.11423211]
[1723884782981,11.59172941,2602.6,2602.5,0.00423211]
[1723884785987,19.14228941,2602.6,2602.5,0.00423211]
[1723884786189,17.12682542,2602.6,2602.5,0.00423211]
[1723884786388,19.64615541,2602.6,2602.5,0.00423211]
[1723884786984,17.12682542,2602.6,2602.5,0.00423211]
[1723884787179,19.64615541,2602.6,2602.5,0.00423211]
[1723884787579,18.20559541,2602.6,2602.5,0.00423211]
[1723884787784,19.64615541,2602.6,2602.5,0.00423211]
[1723884790591,12.09559541,2602.6,2602.5,0.00423211]
[1723884790777,9.57626542,2602.6,2602.5,0.00423211]
[1723884791481,12.09559541,2602.6,2602.5,0.00423211]
[1723884792489,11.37219541,2602.6,2602.5,0.00423211]
[1723884792883,11.37219541,2602.6,2602.5,0.35333211]
[1723884794685,7.17199541,2602.6,2602.5,0.35333211]
[1723884795692,4.65266542,2602.6,2602.5,0.00423211]
[1723884796096,6.09322542,2602.6,2602.5,0.00423211]
[1723884796297,11.04562542,2602.6,2602.5,0.00423211]
[1723884799895,16.04562542,2602.6,2602.5,0.00423211]
[1723884801992,8.49506542,2602.6,2602.5,0.00423211]
[1723884802294,9.93562542,2602.6,2602.5,0.00423211]
[1723884805102,8.49506542,2602.6,2602.5,0.00423211]
[1723884805296,4.65266542,2602.6,2602.5,0.00423211]
[1723884807097,1.44486542,2602.6,2602.5,0.00423211]
[1723884807289,4.65266542,2602.6,2602.5,0.00423211]
[1723884809102,1.44486542,2602.6,2602.5,0.00423211]
[1723884809302,4.65266542,2602.6,2602.5,0.00423211]
[1723884809791,3.21210542,2602.6,2602.5,0.00423211]
[1723884809994,4.65266542,2602.6,2602.5,0.00423211]
[1723884811398,5.76266542,2602.6,2602.5,0.00423211]
[1723884811607,9.60506542,2602.6,2602.5,0.00423211]
[1723884813404,12.62634361,2602.6,2602.5,0.00423211]
[1723884814298,14.06690361,2602.6,2602.5,0.00423211]
[1723884822301,10.85910361,2602.6,2602.5,0.00423211]
[1723884822507,14.06690361,2602.6,2602.5,0.00423211]
[1723884823409,10.85910361,2602.6,2602.5,0.00423211]
[1723884824113,14.06690361,2602.6,2602.5,0.00423211]
[1723884824609,11.04562542,2602.6,2602.5,0.00423211]
[1723884825314,14.07046865,2602.6,2602.5,0.00423211]
[1723884825613,10.86266865,2602.6,2602.5,0.00423211]
[1723884826111,14.07046865,2602.6,2602.5,0.00423211]
[1723884826807,10.22806865,2602.6,2602.5,0.00423211]
[1723884828106,7.02026865,2602.6,2602.5,0.00423211]
[1723884828313,10.22806865,2602.6,2602.5,0.00423211]
[1723884830307,9.11806865,2602.6,2602.5,0.00423211]
[1723884831923,10.22806865,2602.6,2602.5,0.00423211]
[1723884833116,7.67750865,2602.6,2602.5,0.00423211]
[1723884837023,9.11806865,2602.6,2602.5,0.00423211]
[1723884837320,10.22806865,2602.6,2602.5,0.00423211]
[1723884838611,11.66862865,2602.6,2602.5,0.00423211]
[1723884838819,7.20322542,2602.6,2602.5,0.00423211]
[1723884843624,17.48618542,2602.6,2602.5,2.11e-06]
[1723884843926,17.48618542,2602.6,2601.8,0.7174]
[1723884843927,2.8819,2601.9,2601.8,0.7174]
[1723884844124,7.1997,2601.9,2601.8,0.7174]
[1723884844715,7.1997,2601.9,2601.8,0.72177337]
[1723884845219,4.64875,2601.9,2601.8,0.72177337]
[1723884847327,7.16614539,2601.9,2601.8,0.72177337]
[1723884850329,3.95834539,2601.9,2601.8,0.72177337]
[1723884850722,7.16614539,2601.9,2601.8,0.72177337]
[1723884852228,4.64875,2601.9,2601.8,0.72177337]
[1723884853834,11.0429,2601.9,2601.8,0.00437337]
[1723884854030,11.421,2601.9,2601.8,0.00437337]
[1723884855439,7.1032,2601.9,2601.8,0.00437337]
[1723884855734,10.311,2601.9,2601.8,0.00437337]
[1723884855938,7.1032,2601.9,2601.8,0.00437337]
[1723884856232,8.49195,2601.9,2601.8,0.00437337]
[1723884857133,10.50333791,2601.9,2601.8,0.00437337]
[1723884857729,9.9329,2601.9,2601.8,0.00437337]
[1723884858433,11.0429,2601.9,2601.8,0.00437337]
[1723884858625,9.60195,2601.9,2601.8,0.00437337]
[1723884858826,11.0429,2601.9,2601.8,0.00437337]
[1723884859034,9.60195,2601.9,2601.8,0.00437337]
[1723884859329,11.0429,2601.9,2601.8,0.00437337]
[1723884860028,2.88212,2601.7,2601.6,0.00577212]
[1723884860229,6.00310824,2601.7,2601.6,0.00577212]
[1723884860433,7.83612,2601.7,2601.6,0.00577212]
[1723884860826,8.19742,2601.7,2601.6,0.00577212]
[1723884861037,8.19742,2601.7,2601.6,0.01030176]
[1723884862228,10.20789421,2601.7,2601.6,0.01030176]
[1723884862423,8.19742,2601.7,2601.6,0.01030176]
[1723884862940,10.711309,2601.7,2601.6,0.01030176]
[1723884863138,11.063009,2601.7,2601.6,0.01030176]
[1723884863429,8.54912,2601.7,2601.6,0.01030176]
[1723884864431,11.063009,2601.7,2601.6,0.01030176]
[1723884865130,14.270809,2601.7,2601.6,0.01030176]
[1723884867235,11.388689,2601.7,2600.6,1.00371635]
[1723884867432,2.55129,2601.3,2601.2,0.377]
[1723884867629,5.75909,2601.3,2601.2,0.377]
[1723884867825,4.64909,2601.3,2601.2,0.377]
[1723884868229,4.64909,2601.3,2601.2,0.37988444]
[1723884869337,6.09038,2601.3,2601.2,0.37988444]
[1723884869537,4.64909,2601.3,2601.2,0.37988444]
[1723884870827,3.2078,2601.3,2601.2,1.48988444]
[1723884871435,3.2078,2601.3,2601.2,2.93123444]
[1723884871639,3.2078,2601.3,2601.2,1.48988444]
[1723884874037,3.2078,2601.3,2601.2,2.93123444]
[1723884874549,3.2078,2601.3,2601.2,1.48988444]
[1723884875131,1.44127,2601.4,2601.2,1.48988444]
[1723884875740,4.64909,2601.3,2601.2,1.48988444]
[1723884876144,3.2078,2601.3,2601.2,1.48988444]
[1723884877441,4.64909,2601.3,2601.2,1.48988444]
[1723884877833,4.64909,2601.3,2601.2,0.37988444]
[1723884879050,1.44129,2601.3,2601.2,0.37988444]
[1723884879339,4.64909,2601.3,2601.2,0.37988444]
[1723884879535,4.64909,2601.3,2601.2,0.00288444]
[1723884879536,6.09038,2601.3,2601.2,0.00288444]
[1723884881941,4.64909,2601.3,2601.2,0.00288444]
[1723884884252,3.2078,2601.3,2601.2,0.00288444]
[1723884884446,4.64909,2601.3,2601.2,0.00288444]
[1723884886952,4.64909,2601.3,2601.2,1.44423444]
[1723884887154,6.65878927,2601.3,2601.2,1.44423444]
[1723884887953,3.45098927,2601.3,2601.2,1.44423444]
[1723884888156,6.65878927,2601.3,2601.2,1.44423444]
[1723884888753,6.65878927,2601.3,2601.2,0.00288444]
[1723884891354,6.65878927,2601.3,2601.2,1.44423444]
[1723884891648,6.65878927,2601.3,2601.2,0.00288444]
[1723884892156,6.65878927,2601.3,2601.2,1.44423444]
[1723884892356,6.65878927,2601.3,2601.2,0.00288444]
[1723884893047,3.45098927,2601.3,2601.2,0.00288444]
[1723884893252,6.65878927,2601.3,2601.2,0.00288444]
[1723884893451,5.21749927,2601.3,2601.2,1.44423444]
[1723884893853,6.65878927,2601.3,2601.2,1.44423444]
[1723884894052,6.65878927,2601.3,2601.2,0.00288444]
[1723884895152,6.65878927,2601.3,2601.2,1.44423444]
[1723884895753,6.65878927,2601.3,2601.2,0.00288444]
[1723884897050,3.45098927,2601.3,2601.2,0.00288444]
[1723884897248,6.65878927,2601.3,2601.2,0.00288444]
[1723884897449,8.10007927,2601.3,2601.2,0.00288444]
[1723884897652,6.09038,2601.3,2601.2,0.00288444]
[1723884897857,6.81768,2601.3,2601.2,0.00288444]
[1723884898555,9.331569,2601.3,2601.2,0.00288444]
[1723884898957,3.60988,2601.3,2601.2,0.00288444]
[1723884899265,9.331569,2601.3,2601.2,0.00288444]
[1723884901063,7.162979,2601.3,2601.2,0.00288444]
[1723884901264,7.162979,2601.3,2601.2,0.36968444]
[1723884901865,8.272979,2601.3,2601.2,0.36968444]
[1723884902757,8.272979,2601.3,2601.2,0.00288444]
[1723884902957,13.558269,2601.3,2601.2,0.00288444]
[1723884903167,11.41548,2601.3,2601.2,0.00288444]
[1723884903659,10.59711983,2601.3,2601.2,0.00288444]
[1723884903868,7.57148,2601.3,2601.2,0.00288444]
[1723884904165,10.59711983,2601.3,2601.2,0.00288444]
[1723884904560,14.44111983,2601.3,2601.2,0.00288444]
[1723884905467,2.8828,2601.1,2601.0,0.00577212]
[1723884905769,13.45983983,2601.1,2601.0,0.00577212]
[1723884905965,17.80891313,2601.1,2601.0,0.00577212]
[1723884906361,14.279,2601.1,2601.0,0.00577212]
[1723884906665,14.279,2601.1,2601.0,0.01019428]
[1723884907065,9.279,2601.1,2601.0,0.01019428]
[1723884907262,12.30263236,2601.1,2601.0,0.01019428]
[1723884908260,15.51043236,2601.1,2601.0,0.01019428]
[1723884910872,7.2006,2601.1,2601.0,0.01019428]
[1723884912867,3.9928,2601.1,2601.0,0.01019428]
[1723884913068,7.2006,2601.1,2601.0,0.01019428]
[1723884917775,3.9928,2601.1,2601.0,0.01019428]
[1723884918164,7.2006,2601.1,2601.0,0.01019428]
[1723884924982,11.0454,2601.1,2601.0,0.01019428]
[1723884925973,7.8376,2601.1,2601.0,0.01019428]
[1723884927383,11.0454,2601.1,2601.0,0.01019428]
[1723884932374,1.44162,2600.7,2600.6,0.3593]
[1723884932571,7.77242261,2600.7,2600.6,0.3593]
[1723884933379,7.77242261,2600.7,2600.6,4.2041]
[1723884933584,7.77679605,2600.7,2600.6,4.20871367]
[1723884933978,7.77679605,2600.7,2600.6,0.36391367]
[1723884934881,7.77679605,2600.7,2600.6,4.20871367]
[1723884935783,4.56899605,2600.7,2600.6,4.20871367]
[1723884935985,7.77679605,2600.7,2600.6,4.20871367]
[1723884939892,9.7216667,2600.7,2600.6,0.36391367]
[1723884940581,8.2800467,2600.7,2600.6,0.36391367]
[1723884942288,8.28183921,2600.7,2600.6,0.36391367]
[1723884943182,5.76379344,2600.7,2600.6,0.36391367]
[1723884946193,2.55599344,2600.7,2600.6,0.36391367]
[1723884946390,5.76379344,2600.7,2600.6,0.36391367]
[1723884950889,2.55599344,2600.7,2600.6,0.36391367]
[1723884951297,5.76379344,2600.7,2600.6,0.36391367]
[1723884953198,2.55599344,2600.7,2600.6,0.36391367]
[1723884953495,5.76379344,2600.7,2600.6,0.36391367]
[1723884955587,7.20541344,2600.7,2600.6,0.36391367]
[1723884955890,7.20541344,2600.7,2600.4,0.00577212]
[1723884955891,2.88346,2600.5,2600.4,0.00577212]
[1723884956096,3.99346,2600.5,2600.4,0.00577212]
[1723884956389,7.01709236,2600.5,2600.4,0.00577212]
[1723884956892,7.01709236,2600.5,2600.4,0.00995751]
[1723884957292,7.01709236,2600.5,2600.0,1.44197]
[1723884957293,1.44179,2600.4,2599.7,1.00371635]
[1723884957483,1.44179,2600.4,2599.8,1.30459074]
[1723884957484,5.22422417,2599.9,2599.8,1.30459074]
[1723884957685,4.3178,2599.9,2599.8,0.6987]
[1723884958292,6.33347866,2599.9,2599.8,0.70223643]
[1723884958789,7.77554866,2599.9,2599.8,0.70223643]
[1723884958985,5.75987,2599.9,2599.8,0.70223643]
[1723884960288,8.28040022,2599.9,2599.8,0.70223643]
[1723884961090,8.28040022,2599.9,2599.8,0.00353643]
[1723884961285,8.27886984,2599.9,2599.8,0.00353643]
[1723884961497,5.75987,2599.9,2599.8,0.00353643]
[1723884961695,8.64394054,2599.9,2599.8,0.00353643]
[1723884963194,4.3178,2599.9,2599.8,3.84993643]
[1723884963598,6.330795,2599.9,2599.8,0.00353643]
[1723884964188,6.330795,2599.9,2599.8,3.84993643]
[1723884964393,6.330795,2599.9,2599.8,0.00353643]
[1723884964803,6.330795,2599.9,2599.8,3.84993643]
[1723884965600,6.330795,2599.9,2599.8,0.00353643]
[1723884965803,6.330795,2599.9,2599.8,3.84993643]
[1723884966306,4.3178,2599.9,2599.8,3.84993643]
[1723884967200,3.2078,2599.9,2599.8,11.40206643]
[1723884967402,3.2078,2599.9,2599.8,17.29693148]
[1723884967606,2.6383,2599.9,2599.8,17.29693148]
[1723884968103,2.6383,2599.9,2599.8,15.85480148]
[1723884969805,3.21357212,2600.1,2600.0,1.44202]
[1723884970298,3.21357212,2600.1,2600.0,10.28842]
[1723884971300,4.65553212,2600.1,2600.0,5.28842]
[1723884971710,4.65553212,2600.1,2600.0,3.8464]
[1723884973007,4.65553212,2600.1,2600.0,5.28842]
[1723884975304,3.21357212,2600.1,2600.0,5.28842]
[1723884976403,4.65553212,2600.1,2600.0,5.28842]
[1723884976608,1.44773212,2600.1,2600.0,5.28842]
[1723884977702,1.44773212,2600.1,2600.0,5.63982]
[1723884979505,4.65553212,2600.1,2600.0,5.63982]
[1723884980400,1.44204,2600.0,2599.9,1.44203]
[1723884980604,1.44204,2600.0,2599.9,1.80823]
[1723884980809,1.44204,2600.0,2599.9,5.65463]
[1723884983509,1.44204,2600.0,2599.9,1.80823]
[1723884984110,4.64984,2600.0,2599.9,1.80823]
[1723884984512,1.44207,2599.9,2599.8,1.44562643]
[1723884984713,1.44207,2599.9,2599.8,6.40202643]
[1723884986108,1.44207,2599.9,2599.8,3.84993643]
[1723884986410,1.79047,2599.9,2599.8,5.29206643]
[1723884988905,4.64984,2600.0,2599.9,1.44207]
[1723884989910,1.44204,2600.0,2599.9,1.44207]
[1723884990110,4.64984,2600.0,2599.9,1.44207]
[1723884992811,1.44204,2600.0,2599.9,1.44207]
[1723884993313,0.00577212,2600.1,2600.0,1.44202]
[1723884993521,0.00577212,2600.1,2600.0,1.79462]
[1723884994116,3.21357212,2600.1,2600.0,1.79462]
[1723884994619,4.65553212,2600.1,2600.0,1.79462]
[1723884995601,3.21357212,2600.1,2600.0,1.79462]
[1723884996008,3.2078,2600.4,2600.3,1.44185]
[1723884996206,3.2078,2600.4,2600.3,2.55185]
[1723884996422,3.2078,2600.4,2600.3,11.75154201]
[1723884996710,3.2078,2600.4,2600.3,11.14619379]
[1723884996912,3.2078,2600.4,2600.3,11.75156449]
[1723884997116,1.44749212,2600.6,2600.5,1.44174]
[1723884997322,3.46048712,2600.6,2600.5,1.44174]
[1723884997512,3.46048712,2600.6,2600.5,5.28734]
[1723884998818,6.66828712,2600.6,2600.5,5.28734]
[1723884999518,5.22656712,2600.6,2600.5,1.44174]
[1723885000507,3.21357212,2600.6,2600.5,1.44174]
[1723885002223,3.21357212,2600.6,2600.5,5.28734]
[1723885003226,0.00577212,2600.6,2600.5,5.28734]
[1723885003420,3.21357212,2600.6,2600.5,1.44174]
[1723885004427,3.21357212,2600.6,2600.5,1.81944]
[1723885006123,0.00577212,2600.6,2600.5,1.81944]
[1723885007222,3.21357212,2600.6,2600.5,1.81944]
[1723885012028,0.00577212,2600.6,2600.5,1.81944]
[1723885012229,3.21357212,2600.6,2600.5,1.81944]
[1723885012427,5.22656712,2600.6,2600.5,1.81944]
[1723885012627,2.01876712,2600.6,2600.5,1.81944]
[1723885013034,5.22656712,2600.6,2600.5,1.81944]
[1723885013336,2.01876712,2600.6,2600.5,1.81944]
[1723885013535,5.22656712,2600.6,2600.5,1.81944]
[1723885013721,2.01876712,2600.6,2600.5,1.81944]
[1723885013924,5.22656712,2600.6,2600.5,1.81944]
[1723885015029,2.01876712,2600.6,2600.5,1.81944]
[1723885015227,5.22656712,2600.6,2600.5,1.81944]
[1723885015432,3.21357212,2600.6,2600.5,1.81944]
[1723885015633,0.00577212,2600.6,2600.5,1.81944]
[1723885015936,3.21357212,2600.6,2600.5,1.81944]
[1723885016529,0.00577212,2600.6,2600.5,1.81944]
[1723885017035,3.21357212,2600.6,2600.5,1.81944]
[1723885018334,5.22656712,2600.6,2600.5,1.81944]
[1723885018641,2.01876712,2600.6,2600.5,1.81944]
[1723885018936,3.21357212,2600.6,2600.5,1.81944]
[1723885025637,3.21357212,2600.6,2600.5,0.3777]
[1723885025833,3.21357212,2600.6,2600.5,1.81944]
[1723885026441,3.21357212,2600.6,2600.5,13.21678]
[1723885026634,0.00437344,2600.7,2600.6,2.88338]
[1723885026834,0.00437344,2600.7,2600.6,9.44790542]
[1723885027140,0.00437344,2600.7,2600.6,18.00030827]
[1723885027549,0.00437344,2600.7,2600.6,19.00402462]
[1723885028054,0.00437344,2600.7,2600.6,18.00030827]
[1723885030451,0.00437344,2600.7,2600.6,17.3950992]
[1723885030651,0.00437344,2600.7,2600.6,18.00010952]
[1723885030955,0.00437344,2600.7,2600.6,16.55841952]
[1723885031153,0.00437344,2600.7,2600.6,16.55847844]
[1723885032050,0.00437344,2600.7,2600.6,11.55847844]
[1723885032555,0.00437344,2600.7,2600.6,13.00016844]
[1723885033262,0.00437344,2600.7,2600.6,12.3950992]
[1723885033445,0.00437344,2600.7,2600.6,13.00013688]
[1723885033648,0.00437344,2600.7,2600.6,12.3950992]
[1723885033959,0.00437344,2600.7,2600.6,13.00013775]
[1723885035253,0.00437344,2600.7,2600.6,11.55844775]
[1723885036154,0.00437344,2600.7,2600.6,10.44844775]
[1723885036345,0.00437344,2600.7,2600.6,10.9534092]
[1723885036860,3.21217344,2600.7,2600.6,10.9534092]
[1723885038349,3.21217344,2600.7,2600.6,7.1078092]
[1723885038651,3.21217344,2600.7,2600.6,10.9526092]
[1723885040157,3.21217344,2600.7,2600.6,11.55777122]
[1723885041151,0.00437344,2600.7,2600.6,11.55777122]
[1723885041351,3.21217344,2600.7,2600.6,11.55777122]
[1723885041557,3.21217344,2600.7,2600.6,10.9526092]
[1723885041861,3.21217344,2600.7,2600.6,11.55778223]
[1723885043559,0.00437344,2600.7,2600.6,11.55778223]
[1723885043767,3.21217344,2600.7,2600.6,11.55778223]
[1723885044062,0.00437344,2600.7,2600.6,11.55778223]
[1723885044263,3.21217344,2600.7,2600.6,11.55778223]
[1723885045160,0.00437344,2600.7,2600.6,11.55778223]
[1723885045364,3.21217344,2600.7,2600.6,11.55778223]
[1723885045859,3.21217344,2600.7,2600.6,11.5577097]
[1723885046261,3.21217344,2600.7,2600.6,10.9526092]
[1723885046468,0.00437344,2600.7,2600.6,11.55769685]
[1723885046960,3.21217344,2600.7,2600.6,7.71289685]
[1723885048656,0.00437344,2600.7,2600.6,7.71289685]
[1723885049064,3.21217344,2600.7,2600.6,7.71289685]
[1723885049763,3.21217344,2600.7,2600.6,7.1078092]
[1723885049968,0.00437344,2600.7,2600.6,7.71251516]
[1723885050260,3.21217344,2600.7,2600.6,7.71251516]
[1723885050968,3.21217344,2600.7,2600.6,7.36251516]
[1723885051161,3.21217344,2600.7,2600.6,1.44169]
[1723885051365,3.21217344,2600.7,2600.6,2.04644434]
[1723885051560,3.21217344,2600.7,2600.6,2.40824434]
[1723885052065,4.65380344,2600.7,2600.6,2.40824434]
[1723885052468,3.21217344,2600.7,2600.6,2.40824434]
[1723885053264,3.21217344,2600.7,2600.6,3.51824434]
[1723885054970,0.00437344,2600.7,2600.6,3.51824434]
[1723885055272,3.21217344,2600.7,2600.6,3.51824434]
[1723885055569,0.00437344,2600.7,2600.6,3.51824434]
[1723885055769,3.21217344,2600.7,2600.6,3.51824434]
[1723885056465,0.00437344,2600.7,2600.6,3.51824434]
[1723885056671,3.21217344,2600.7,2600.6,3.51824434]
[1723885058259,3.21217344,2600.7,2600.6,3.51822645]
[1723885059068,0.00437344,2600.7,2600.6,3.51822645]
[1723885059261,0.00437344,2600.7,2600.6,3.51819978]
[1723885059666,0.00437344,2600.7,2600.6,3.87069978]
[1723885062375,0.00437344,2600.7,2600.6,3.87065826]
[1723885064573,0.00437344,2600.7,2600.6,6.31606461]
[1723885065072,0.00437344,2600.7,2600.6,7.28145736]
[1723885065275,0.00437344,2600.7,2600.6,4.87433242]
[1723885065478,0.00437344,2600.7,2600.6,7.76223679]
[1723885065679,0.00437344,2600.7,2600.6,5.83971871]
[1723885066272,0.00437344,2600.7,2600.6,4.87433242]
[1723885066673,0.00437344,2600.7,2600.6,4.87433798]
[1723885067287,0.00437344,2600.7,2600.6,7.76226478]
[1723885068068,0.00437344,2600.7,2600.6,6.19223699]
[1723885068274,0.00437344,2600.7,2600.6,7.76224425]
[1723885070086,0.00437344,2600.7,2600.6,8.26410243]
[1723885070579,0.00437344,2600.7,2600.6,12.10890243]
[1723885070881,0.00437344,2600.7,2600.6,17.76989303]
[1723885071271,0.00437344,2600.7,2600.6,14.75819652]
[1723885071478,0.00437344,2600.7,2600.6,16.3281943]
[1723885071982,0.00437344,2600.7,2600.6,16.3281906]
[1723885074779,0.00437344,2600.7,2600.6,17.7698806]
[1723885075774,0.00437344,2600.7,2600.6,16.3281906]
[1723885075979,0.00437344,2600.7,2600.6,17.7698806]
[1723885076181,0.00437344,2600.7,2600.6,16.26430607]
[1723885078993,0.00437344,2600.7,2600.6,16.26420326]
[1723885081977,0.00437344,2600.7,2600.6,16.26424801]
[1723885082483,0.00437344,2600.7,2600.6,16.26424771]
[1723885083381,0.00437344,2600.7,2600.6,16.26423278]
[1723885083786,0.00437344,2600.7,2600.6,17.77271432]
[1723885083991,0.00437344,2600.7,2600.6,17.77244341]
[1723885084486,0.00437344,2600.7,2600.6,15.8499314]
[1723885084684,0.00437344,2600.7,2600.6,17.77244348]
[1723885085287,0.00437344,2600.7,2600.6,16.26423285]
[1723885085894,0.00437344,2600.7,2600.6,14.69429343]
[1723885086094,0.00437344,2600.7,2600.6,16.26379064]
[1723885087593,0.00437344,2600.7,2600.6,14.82210064]
[1723885088199,0.00437344,2600.7,2600.6,10.97730064]
[1723885088391,0.00437344,2600.7,2600.6,14.82210064]
[1723885089399,0.00437344,2600.7,2600.6,16.26379064]
[1723885091600,0.00577212,2600.9,2600.8,1.44158]
[1723885091895,0.00577212,2600.9,2600.8,7.55148793]
[1723885092095,0.00577212,2600.9,2600.8,8.48057431]
[1723885092690,0.00899868,2600.9,2600.8,8.48057431]
[1723885094103,0.00899868,2600.9,2600.8,7.87615228]
[1723885094299,0.00899868,2600.9,2600.8,8.48058198]
[1723885094499,0.00899868,2600.9,2600.8,7.87615228]
[1723885094803,0.00899868,2600.9,2600.8,8.48056028]
[1723885098407,0.00899868,2600.9,2600.8,8.48058384]
[1723885102107,2.02199368,2600.9,2600.8,8.48058384]
[1723885102304,2.02199368,2600.9,2600.8,7.87615228]
[1723885102507,2.02199368,2600.9,2600.8,9.44564404]
[1723885104213,2.02199368,2600.9,2600.8,11.36811633]
[1723885106508,2.02199368,2600.9,2600.8,9.79862457]
[1723885106708,2.02199368,2600.9,2600.8,11.3681185]
[1723885107212,2.02199368,2600.9,2600.8,11.36813718]
[1723885111310,2.02199368,2600.9,2600.8,10.36284705]
[1723885111818,2.02199368,2600.9,2600.8,10.36283761]
[1723885113929,0.00899868,2600.9,2600.8,11.87073625]
[1723885114214,2.02199368,2600.9,2600.8,11.87073625]
[1723885114421,0.00899868,2600.9,2600.8,11.87073625]
[1723885114619,0.00899868,2600.9,2600.8,10.36283761]
[1723885114812,0.00899868,2600.9,2600.8,11.87080683]
[1723885116413,0.00899868,2600.9,2600.8,11.87068746]
[1723885118226,0.00899868,2600.9,2600.8,10.30117441]
[1723885118421,2.012995,2601.3,2601.1,1.44137]
[1723885118725,2.012995,2601.4,2601.3,1.4413]
[1723885118921,2.012995,2601.4,2601.3,7.04739747]
[1723885119122,2.012995,2601.4,2601.3,9.50780634]
[1723885119320,5.220795,2601.5,2601.4,1.44124]
[1723885119615,5.22545372,2601.5,2601.4,2.04521782]
[1723885120227,5.22545372,2601.5,2601.4,2.04523463]
[1723885121427,3.21245872,2601.5,2601.4,1.44124]
[1723885123028,0.00465872,2601.5,2601.4,1.44124]
[1723885123324,3.21245872,2601.5,2601.4,1.44124]
[1723885123921,3.21245872,2601.5,2601.4,5.81705268]
[1723885124529,0.00465872,2601.5,2601.4,5.81705268]
[1723885124729,3.21245872,2601.5,2601.4,5.81705268]
[1723885125422,0.00465872,2601.5,2601.4,5.81705268]
[1723885125725,0.00465872,2601.5,2601.4,6.42095215]
[1723885126719,0.00465872,2601.5,2601.4,5.81705268]
[1723885130431,0.00465872,2601.5,2601.4,6.92705268]
[1723885132830,3.21245872,2601.5,2601.4,6.92705268]
[1723885135529,0.00465872,2601.5,2601.4,6.92705268]
[1723885136127,3.21245872,2601.5,2601.4,6.92705268]
[1723885136932,0.00465872,2601.5,2601.4,6.92705268]
[1723885137230,3.21245872,2601.5,2601.4,6.92705268]
[1723885139642,0.00465872,2601.5,2601.4,6.92705268]
[1723885139940,3.21245872,2601.5,2601.4,6.92705268]
[1723885141735,0.00465872,2601.5,2601.4,6.92705268]
[1723885141932,0.00465872,2601.5,2601.4,12.21229268]
[1723885142138,0.00465872,2601.5,2601.4,12.81635507]
[1723885142333,0.00465872,2601.5,2601.4,13.82064737]
[1723885143043,0.00465872,2601.5,2601.4,15.26188737]
[1723885143241,0.00465872,2601.5,2601.4,15.74242158]
[1723885143447,0.00465872,2601.5,2601.4,13.82064737]
[1723885143645,0.00465872,2601.5,2601.4,55.73122487]
[1723885144441,0.00465872,2601.5,2601.4,63.20266181]
[1723885146335,0.00465872,2601.5,2601.4,63.50808007]
[1723885146538,0.00465872,2601.5,2601.4,63.31475842]
[1723885147149,0.00465872,2601.5,2601.4,63.50760642]
[1723885147950,0.00577212,2601.7,2601.6,2.88226]
[1723885148151,0.00577212,2601.7,2601.6,4.59613646]
[1723885148352,0.00577212,2601.7,2601.6,53.55664836]
[1723885148549,0.00577212,2601.7,2601.6,55.29836716]
[1723885149042,0.00879023,2601.7,2601.6,55.29836716]
[1723885149250,0.00879023,2601.7,2601.6,54.29714836]
[1723885149449,0.00879023,2601.7,2601.6,55.29836716]
[1723885149843,0.00879023,2601.7,2601.6,56.73949716]
[1723885150252,0.00879023,2601.7,2601.6,55.73827836]
[1723885152443,0.00879023,2601.7,2601.6,56.73949716]
[1723885152853,0.00879023,2601.7,2601.6,58.66100917]
[1723885153452,0.00879023,2601.7,2601.6,56.73949716]
[1723885154953,0.00879023,2601.7,2601.6,59.3434207]